bitfinex/quotes_ETHUSD_20251015
["timestamp","ask_amount","ask_price","bid_price","bid_amount"]
[1760522887161,3.636,4159.7,4159.6,2.40407731]
[1760522888263,3.7259,4159.7,4159.4,2.40419291]
[1760522888470,0.0899,4159.6,4159.5,2.40413511]
[1760522890891,0.0899,4159.6,4159.4,2.4041423]
[1760522891094,0.0899,4159.6,4159.5,2.40413511]
[1760522891607,3.636,4159.7,4159.4,2.40419291]
[1760522891973,3.636,4159.7,4159.6,2.40407731]
[1760522893110,0.12,4159.7,4159.6,2.40407731]
[1760522893266,3.541,4159.7,4159.6,2.87867731]
[1760522893771,3.421,4159.7,4159.6,2.87867731]
[1760522893976,3.421,4159.7,4159.6,3.55117847]
[1760522894632,0.0002,4159.8,4159.7,2.40401952]
[1760522894768,3.5162,4159.8,4159.7,2.40401952]
[1760522894968,3.5162,4159.8,4159.7,2.87861952]
[1760522896100,3.5162,4159.8,4159.7,2.40401952]
[1760522896268,3.5162,4159.8,4159.6,0.002]
[1760522896269,3.6655,4159.8,4159.6,0.002]
[1760522896468,9.543523,4159.7,4159.6,0.002]
[1760522896762,8.667603,4159.7,4159.6,0.002]
[1760522896990,0.2693,4159.7,4159.6,0.002]
[1760522897898,0.2693,4159.7,4159.6,2.40607731]
[1760522898404,0.2693,4159.7,4159.6,0.002]
[1760522898613,0.2693,4159.7,4159.6,2.40607731]
[1760522898912,0.12,4159.7,4159.6,2.40607731]
[1760522899084,3.5162,4159.8,4159.7,2.40401952]
[1760522899279,3.5162,4159.8,4159.7,2.87861952]
[1760522899507,3.5162,4159.8,4159.7,3.5390892]
[1760522901309,3.5162,4159.8,4159.7,2.52401952]
[1760522901694,0.0002,4159.8,4159.7,2.99861952]
[1760522901903,1.083,4160.0,4159.9,2.40390393]
[1760522902141,4.599,4160.0,4159.9,2.87850393]
[1760522902589,0.001,4160.3,4160.2,4.95733058]
[1760522902792,0.0002,4160.3,4160.2,6.17569858]
[1760522903008,0.0002,4160.3,4160.2,6.77029858]
[1760522903710,0.001,4160.7,4160.6,3.03709949]
[1760522903892,0.001,4160.7,4160.6,3.15709949]
[1760522904305,0.001,4160.7,4160.6,3.63169949]
[1760522904510,0.001,4160.7,4160.6,4.23522721]
[1760522904888,2.355,4160.7,4160.6,4.23522721]
[1760522905310,2.355,4160.7,4160.6,3.76062721]
[1760522905813,2.355,4160.7,4160.6,3.12702721]
[1760522906214,2.7875,4160.7,4160.6,2.52349949]
[1760522906423,2.355,4160.7,4160.6,2.52349949]
[1760522907397,2.7875,4160.7,4160.2,2.40371365]
[1760522907596,0.4325,4160.6,4160.2,0.12]
[1760522907797,2.355,4160.7,4160.2,0.12]
[1760522907798,0.4325,4160.5,4160.2,0.12]
[1760522908013,0.4325,4160.5,4160.4,2.40359131]
[1760522908690,2.355,4160.7,4160.6,2.40349949]
[1760522908891,2.7875,4160.7,4160.6,2.40349949]
[1760522909090,2.7875,4160.7,4160.2,0.12]
[1760522909287,0.4325,4160.6,4160.4,2.40355964]
[1760522909493,0.4325,4160.6,4160.5,2.40355726]
[1760522910092,1.5155,4160.6,4160.5,2.40355726]
[1760522910493,1.5155,4160.6,4160.3,2.40361687]
[1760522910695,0.4325,4160.5,4160.2,0.12]
[1760522910906,0.4325,4160.5,4160.4,2.40361503]
[1760522911418,0.4325,4160.5,4160.3,2.40367281]
[1760522911624,0.4325,4160.4,4160.2,2.40372254]
[1760522911818,3.515,4160.3,4159.8,0.4746]
[1760522912023,3.515,4160.3,4160.2,2.40373058]
[1760522913507,1.083,4160.3,4160.2,3.51193058]
[1760522913715,3.515,4160.3,4160.2,3.51193058]
[1760522913902,3.515,4160.3,4160.2,4.10350439]
[1760522915222,0.001,4160.6,4160.5,2.40355726]
[1760522915427,3.516,4160.6,4160.5,2.40355726]
[1760522915628,3.516,4160.6,4160.5,2.87815726]
[1760522917732,3.516,4160.6,4160.5,2.40355726]
[1760522918232,3.516,4160.6,4160.5,3.24716684]
[1760522921348,3.516,4160.6,4160.5,3.69886684]
[1760522921845,3.516,4160.6,4160.5,3.81886684]
[1760522922827,0.001,4160.7,4160.5,3.81886684]
[1760522922828,0.001,4160.7,4160.6,4.95709949]
[1760522923029,1.084,4160.7,4160.6,5.40879949]
[1760522923223,1.084,4160.7,4160.6,7.45528769]
[1760522923950,3.516,4160.7,4160.6,7.45528769]
[1760522926253,3.5152,4160.7,4160.6,7.45528769]
[1760522927245,0.001,4160.8,4160.7,4.95704172]
[1760522927449,1.084,4160.8,4160.7,5.40874172]
[1760522927649,1.084,4160.8,4160.7,7.41950377]
[1760522928033,1.5138,4160.8,4159.8,0.002]
[1760522928223,0.4272,4160.7,4159.8,0.002]
[1760522928425,2.432,4160.6,4160.1,2.40378744]
[1760522928753,2.432,4160.6,4159.8,0.002]
[1760522928754,0.4272,4160.5,4159.8,0.002]
[1760522928960,0.4272,4160.5,4160.2,2.40368039]
[1760522929175,0.4272,4160.4,4160.3,2.40366262]
[1760522929670,0.4282,4160.8,4160.7,2.40344172]
[1760522929956,0.4282,4160.8,4160.3,2.40361628]
[1760522929957,3.9432,4160.8,4160.5,2.40352118]
[1760522930154,0.001,4160.8,4159.8,0.002]
[1760522930359,2.217,4160.7,4160.6,2.40349949]
[1760522930532,2.6442,4160.7,4160.6,2.40349949]
[1760522931141,0.001,4160.8,4160.7,2.40344172]
[1760522931336,2.896,4160.8,4160.7,2.40344172]
[1760522931560,1.084,4160.8,4160.7,5.40874172]
[1760522931737,3.516,4160.8,4160.7,5.97862336]
[1760522931933,3.516,4160.8,4160.7,6.43032336]
[1760522933066,3.516,4160.8,4160.7,3.42502336]
[1760522933366,3.516,4160.8,4160.7,2.40344172]
[1760522935268,3.9382,4160.8,4160.7,2.40344172]
[1760522936799,3.9382,4160.8,4160.0,1.92]
[1760522937098,3.9382,4160.8,4160.7,2.40344172]
[1760522941089,3.516,4160.8,4160.7,2.40344172]
[1760522941261,3.516,4160.8,4160.6,0.12]
[1760522941262,3.9382,4160.8,4160.6,0.12]
[1760522941462,0.4222,4160.7,4160.6,0.12]
[1760522941660,0.4222,4160.7,4160.2,0.12]
[1760522941859,0.4222,4160.6,4160.4,2.403568]
[1760522942072,0.4222,4160.6,4160.3,2.40366783]
[1760522942380,0.4222,4160.5,4160.4,2.40360401]
[1760522943351,0.4222,4160.5,4160.3,2.40365457]
[1760522943567,2.8542,4160.4,4160.3,2.40365457]
[1760522943816,2.8542,4160.4,4160.2,0.12]
[1760522944014,6.35457937,4160.3,4159.8,0.002]
[1760522944322,0.2258,4159.9,4159.8,0.002]
[1760522944601,2.6578,4159.9,4159.8,0.002]
[1760522944806,3.078,4159.9,4159.8,0.002]
[1760522945179,3.63818305,4159.9,4159.8,0.002]
[1760522946808,15.21532398,4159.9,4159.8,0.002]
[1760522947012,12.46415398,4159.9,4159.8,0.002]
[1760522947720,8.76360298,4159.9,4159.8,0.002]
[1760522948022,9.11679498,4159.9,4159.8,0.002]
[1760522948317,8.56802098,4159.9,4159.8,0.002]
[1760522948497,3.51591505,4159.9,4159.8,0.002]
[1760522948676,3.63818305,4159.9,4159.8,0.002]
[1760522948877,6.04208698,4159.9,4159.8,0.002]
[1760522949603,8.21017298,4159.9,4159.8,0.002]
[1760522949802,6.04128698,4159.9,4159.8,0.002]
[1760522950177,11.92352698,4159.9,4159.8,0.002]
[1760522950573,12.42008798,4159.9,4159.8,0.002]
[1760522950808,7.12428698,4159.9,4159.8,0.002]
[1760522951700,4.72038305,4159.9,4159.8,0.002]
[1760522951902,7.12428698,4159.9,4159.8,0.002]
[1760522952095,14.95778498,4159.9,4159.8,0.002]
[1760522952910,13.39913398,4159.9,4159.8,0.002]
[1760522953220,12.80618098,4159.9,4159.8,0.002]
[1760522953381,4.72038305,4159.9,4159.8,0.002]
[1760522954580,1.20538305,4159.9,4159.8,0.002]
[1760522954806,3.63838305,4159.9,4159.8,0.002]
[1760522955313,2.40385647,4160.0,4159.8,0.002]
[1760522955314,0.28542,4160.4,4159.8,0.002]
[1760522955476,2.8722314,4160.2,4159.8,0.002]
[1760522956011,1.921,4160.8,4159.9,2.4038633]
[1760522956012,2.40348861,4160.7,4159.9,2.4038633]
[1760522956212,0.12,4160.2,4159.9,0.4572]
[1760522956398,0.001,4160.8,4159.8,0.002]
[1760522956399,0.001,4160.8,4160.1,0.2221]
[1760522956596,0.001,4160.8,4160.7,2.40344172]
[1760522956922,0.985,4160.8,4160.7,2.64378589]
[1760522957080,0.985,4160.8,4160.7,2.40344172]
[1760522957397,0.985,4160.8,4159.8,0.002]
[1760522957708,1.4478,4160.8,4160.2,2.40372542]
[1760522958638,3.85119665,4160.8,4159.8,2.86315713]
[1760522958846,0.001,4160.8,4159.8,0.4592]
[1760522959142,2.433,4160.7,4160.2,2.40368678]
[1760522959339,2.433,4160.7,4160.4,2.40360343]
[1760522959630,2.433,4160.7,4160.4,2.86080343]
[1760522959943,2.433,4160.7,4160.5,0.4572]
[1760522960136,1.083,4160.6,4160.3,2.40365549]
[1760522960337,1.083,4160.6,4160.3,2.86085549]
[1760522960733,1.083,4160.6,4160.1,2.40374265]
[1760522961040,1.083,4160.6,4160.4,2.40360982]
[1760522961411,1.083,4160.6,4160.2,2.40367825]
[1760522962940,1.083,4160.7,4160.2,2.40367825]
[1760522963136,3.516,4160.5,4160.2,0.4572]
[1760522963940,3.516,4160.5,4160.1,2.40373074]
[1760522964311,3.516,4160.5,4160.3,2.40366971]
[1760522964513,3.516,4160.5,4160.4,2.40361503]
[1760522964909,3.516,4160.5,4160.1,2.40377068]
[1760522964910,3.516,4160.5,4160.3,2.40365519]
[1760522966115,3.516,4160.5,4160.4,2.40361503]
[1760522966315,3.516,4160.5,4160.4,2.86081503]
[1760522966834,3.516,4160.5,4160.4,2.40361503]
[1760522967042,3.516,4160.5,4160.3,2.4036604]
[1760522967344,0.12,4160.4,4160.3,2.4036604]
[1760522971564,0.12,4160.4,4160.2,2.40370144]
[1760522971931,0.12,4160.4,4159.8,0.002]
[1760522972127,0.12,4160.4,4160.3,2.40367281]
[1760522973571,0.1192,4160.4,4160.3,2.40367281]
[1760522974781,0.1192,4160.4,4160.1,2.86096745]
[1760522974977,1.083,4160.3,4160.2,2.40370832]
[1760522975473,1.083,4160.3,4160.1,2.40377223]
[1760522975679,2.432,4160.2,4160.1,2.40377223]
[1760522976178,2.432,4160.2,4159.8,2.4059616]
[1760522976179,2.8523,4160.2,4159.8,2.4059616]
[1760522976475,2.552,4160.2,4160.1,2.40378837]
[1760522976776,2.552,4160.2,4159.8,0.4592]
[1760522976946,2.552,4160.2,4160.1,2.40378837]
[1760522981608,0.001,4160.6,4160.5,2.40355726]
[1760522982083,2.854,4160.6,4160.5,3.88242335]
[1760522983016,2.854,4160.6,4160.5,3.85838778]
[1760522983196,3.516,4160.6,4160.5,3.85838778]
[1760522985701,0.001,4160.8,4160.7,2.40344172]
[1760522985870,3.516,4160.8,4160.7,8.67573286]
[1760522986201,3.516,4160.8,4160.7,10.51570492]
[1760522988099,3.516,4160.8,4160.7,6.16341378]
[1760522988298,3.516,4160.8,4160.7,10.51570492]
[1760522996835,3.5152,4160.8,4160.7,10.51570492]
[1760522998836,3.5152,4160.8,4160.7,10.07730492]
[1760523000718,3.5152,4160.8,4160.7,5.72501378]
[1760523000916,3.9187,4160.8,4160.7,4.32344172]
[1760523001234,3.9187,4160.8,4160.7,2.40344172]
[1760523001713,3.9187,4160.8,4160.6,2.4054977]
[1760523001917,0.4035,4160.7,4160.6,2.4054977]
[1760523002320,3.5152,4160.8,4160.7,2.40344172]
[1760523002514,0.0002,4160.8,4160.7,2.40344172]
[1760523002714,3.5142,4160.8,4160.7,3.23237007]
[1760523002915,1.0832,4160.8,4160.7,8.0037268]
[1760523003115,3.1132,4160.8,4160.7,9.9237268]
[1760523004117,3.5142,4160.8,4160.7,9.9237268]
[1760523006137,3.5142,4160.8,4160.7,10.1649268]
[1760523006314,3.5142,4160.8,4160.7,9.9237268]
[1760523009248,3.9653,4160.8,4160.7,4.44344172]
[1760523009406,3.5142,4160.8,4160.7,4.44344172]
[1760523010313,3.9626,4160.8,4160.7,4.44344172]
[1760523012246,3.9626,4160.8,4160.6,0.002]
[1760523012417,4.37707,4160.8,4160.6,2.40548675]
[1760523012612,3.5142,4160.8,4160.7,2.40344172]
[1760523013034,3.5142,4160.8,4160.7,2.52344172]
[1760523013229,3.5142,4160.8,4160.7,6.24213286]
[1760523014547,3.5142,4160.8,4160.7,8.59013286]
[1760523015045,3.5142,4160.8,4160.7,8.16213286]
[1760523015248,3.5142,4160.8,4160.7,10.32330104]
[1760523015937,0.0002,4160.8,4160.7,10.32330104]
[1760523016135,3.5142,4160.8,4160.7,10.32330104]
[1760523017950,3.5142,4160.8,4160.7,6.6046099]
[1760523018119,3.5142,4160.8,4160.7,10.32330104]
[1760523018320,3.9164,4160.8,4160.7,4.44344172]
[1760523018651,3.9164,4160.8,4160.7,2.52344172]
[1760523019261,3.9164,4160.8,4160.7,0.12]
[1760523019462,3.9164,4160.8,4160.6,0.002]
[1760523019761,3.5142,4160.8,4160.7,2.40344172]
[1760523020364,1.4846,4160.8,4160.7,2.40344172]
[1760523020752,1.4846,4160.8,4160.6,2.40548478]
[1760523020938,1.083,4160.8,4160.6,2.40548478]
[1760523021461,1.083,4160.8,4160.7,2.40344172]
[1760523021669,3.514,4160.8,4160.7,2.40344172]
[1760523022448,3.9156,4160.8,4160.6,2.40545601]
[1760523022646,0.4016,4160.7,4160.6,0.002]
[1760523022973,0.81594,4160.7,4160.6,0.002]
[1760523024067,3.21938172,4160.7,4160.6,0.002]
[1760523026863,11.02724772,4160.7,4160.6,0.002]
[1760523027064,6.21125472,4160.7,4160.6,0.002]
[1760523027567,3.21938172,4160.7,4160.6,0.002]
[1760523027751,8.57860472,4160.7,4160.6,0.002]
[1760523028365,10.77155072,4160.7,4160.6,0.002]
[1760523028665,10.04954672,4160.7,4160.6,0.002]
[1760523029067,11.96954672,4160.7,4160.6,0.002]
[1760523029566,19.08102548,4160.7,4160.6,0.002]
[1760523030065,19.71462548,4160.7,4160.6,0.002]
[1760523030267,20.79762548,4160.7,4160.6,0.002]
[1760523030471,33.28737943,4160.7,4160.6,0.002]
[1760523031472,33.63683643,4160.7,4160.6,0.002]
[1760523032577,33.36579143,4160.7,4160.6,0.002]
[1760523033452,33.20196967,4160.7,4160.6,0.002]
[1760523034066,31.77795572,4160.7,4160.6,0.002]
[1760523034268,30.25355672,4160.7,4160.6,0.002]
[1760523034486,5.77298172,4160.7,4160.6,0.002]
[1760523034690,30.35605272,4160.7,4160.6,0.002]
[1760523035794,30.52386672,4160.7,4160.6,0.002]
[1760523035951,22.40243572,4160.7,4160.6,0.002]
[1760523036358,22.77946862,4160.7,4160.6,0.002]
[1760523036652,30.99349762,4160.7,4160.6,0.002]
[1760523037076,31.81785076,4160.7,4160.6,0.002]
[1760523037272,30.16690276,4160.7,4160.6,0.002]
[1760523037486,29.09599976,4160.7,4160.6,0.002]
[1760523037684,9.86870576,4160.7,4160.6,0.002]
[1760523037872,30.16138176,4160.7,4160.6,0.002]
[1760523038794,30.16153976,4160.7,4160.6,0.002]
[1760523039363,29.36118646,4160.7,4160.6,0.002]
[1760523039565,29.36118646,4160.7,4160.2,0.002]
[1760523039566,33.68526481,4160.3,4160.2,1e-08]
[1760523039780,40.30661065,4160.3,4160.2,1e-08]
[1760523039980,27.45086565,4160.3,4160.2,1e-08]
[1760523040181,29.71331545,4160.3,4160.2,1e-08]
[1760523040786,39.39417645,4160.3,4160.2,1e-08]
[1760523040990,39.49473445,4160.3,4160.2,1e-08]
[1760523041676,24.65550293,4159.9,4159.8,1e-08]
[1760523041990,28.15922977,4159.9,4159.8,1e-08]
[1760523042169,28.55862977,4159.9,4159.8,1e-08]
[1760523042368,29.03216404,4159.9,4159.8,1e-08]
[1760523042568,29.91751671,4159.9,4159.8,1e-08]
[1760523042789,28.55585071,4159.9,4159.8,1e-08]
[1760523043394,13.73890171,4159.9,4159.8,1e-08]
[1760523043693,13.87925224,4159.9,4159.8,1e-08]
[1760523043902,15.32289524,4159.9,4159.8,1e-08]
[1760523044196,10.2157546,4159.9,4159.8,0.46850001]
[1760523044397,4.32310393,4159.9,4159.8,1e-08]
[1760523044566,0.09643213,4160.1,4159.8,0.46850001]
[1760523044767,2.101,4160.0,4159.9,2.40386356]
[1760523044984,2.101,4160.0,4159.9,0.75613636]
[1760523045295,0.001,4161.3,4159.9,0.4685]
[1760523045484,2.432,4160.7,4160.3,2.40366914]
[1760523045680,2.432,4160.7,4160.4,0.4685]
[1760523046796,4.83546259,4160.7,4160.4,0.4685]
[1760523047095,2.40360184,4160.5,4160.4,0.4685]
[1760523047296,2.432,4160.7,4160.4,0.4685]
[1760523047593,2.40349949,4160.6,4160.5,0.4685]
[1760523047795,2.432,4160.7,4159.8,1e-08]
[1760523047999,2.432,4160.7,4159.9,2.40390393]
[1760523048499,4.83544201,4160.7,4160.0,0.4685]
[1760523049367,2.40350388,4160.6,4160.0,0.4685]
[1760523049567,0.12,4160.4,4160.0,0.4685]
[1760523050180,1.083,4160.3,4160.0,0.4685]
[1760523050900,1.083,4160.3,4160.0,0.79716236]
[1760523051075,1.083,4160.3,4160.1,2.40376858]
[1760523051266,1.083,4160.3,4160.2,0.4685]
[1760523055872,1.083,4160.3,4160.0,0.002]
[1760523056073,2.431,4160.2,4160.0,0.002]
[1760523056600,0.12,4160.1,4160.0,0.002]
[1760523057002,0.12,4160.1,4160.0,0.4339]
[1760523057207,1.083,4160.3,4160.0,0.4339]
[1760523057404,2.431,4160.1,4160.0,2.83769436]
[1760523057575,3.514,4160.1,4160.0,2.83769436]
[1760523058801,3.514,4160.1,4160.0,0.4339]
[1760523060008,3.514,4160.1,4160.0,0.002]
[1760523060403,3.514,4160.1,4160.0,2.83774615]
[1760523060579,3.514,4160.1,4160.0,3.13372077]
[1760523060908,3.514,4160.1,4160.0,0.72987462]
[1760523061787,3.514,4160.1,4160.0,0.4339]
[1760523061983,3.514,4160.1,4160.0,0.002]
[1760523064404,3.514,4160.1,4160.0,0.4339]
[1760523065008,3.514,4160.1,4160.0,0.002]
[1760523065411,3.634,4160.1,4160.0,0.002]
[1760523066604,4.0792,4160.1,4160.0,0.002]
[1760523066833,6.48298837,4160.1,4160.0,0.002]
[1760523067119,3.634,4160.1,4160.0,0.002]
[1760523067320,1.2022,4160.1,4160.0,0.002]
[1760523067489,1.2022,4160.1,4160.0,0.4339]
[1760523067992,1.083,4160.1,4160.0,0.002]
[1760523068310,1.083,4160.1,4160.0,0.4339]
[1760523068486,3.514,4160.1,4160.0,0.4339]
[1760523069931,3.514,4160.1,4160.0,2.83774615]
[1760523070113,3.514,4160.1,4160.0,3.37412174]
[1760523070706,3.514,4160.1,4160.0,0.97027559]
[1760523071520,0.001,4160.3,4160.0,3.37411341]
[1760523071721,3.514,4160.1,4160.0,2.94221341]
[1760523072117,3.514,4160.1,4160.0,0.53837559]
[1760523072317,3.514,4160.1,4160.0,0.97617559]
[1760523072852,3.514,4160.1,4160.0,0.4398]
[1760523073209,3.514,4160.1,4160.0,0.002]
[1760523076931,3.514,4160.1,4160.0,2.40584615]
[1760523077240,3.514,4160.1,4160.0,0.002]
[1760523077829,3.9547,4160.1,4160.0,0.002]
[1760523078032,4.36227,4160.1,4160.0,0.002]
[1760523078347,4.0747,4160.1,4160.0,0.002]
[1760523079753,2.9917,4160.1,4160.0,0.002]
[1760523080175,4.0747,4160.1,4160.0,0.002]
[1760523081368,6.47848837,4160.1,4160.0,0.002]
[1760523081768,5.39548837,4160.1,4160.0,0.002]
[1760523081940,20.97407113,4160.1,4160.0,0.002]
[1760523083047,6.17550513,4160.1,4160.0,0.002]
[1760523083241,21.26299613,4160.1,4160.0,0.002]
[1760523083654,19.18799013,4160.1,4160.0,0.002]
[1760523083852,6.17550513,4160.1,4160.0,0.002]
[1760523084167,12.21428713,4160.1,4160.0,0.002]
[1760523084375,14.64428713,4160.1,4160.0,0.002]
[1760523084737,14.44165813,4160.1,4160.0,0.002]
[1760523084942,3.74450513,4160.1,4160.0,0.002]
[1760523085174,2.55,4160.1,4160.0,0.002]
[1760523085378,4.95378837,4160.1,4160.0,0.002]
[1760523085556,5.39448837,4160.1,4160.0,0.002]
[1760523086277,11.22344321,4160.1,4160.0,0.002]
[1760523086885,35.20082021,4160.1,4160.0,0.002]
[1760523087179,35.89384516,4160.1,4160.0,0.002]
[1760523087377,33.77589056,4159.8,4159.7,1e-08]
[1760523087578,22.08361451,4159.8,4159.7,1e-08]
[1760523087779,17.77327151,4159.8,4159.7,1e-08]
[1760523087987,17.61221751,4159.8,4159.7,1e-08]
[1760523088150,20.04221751,4159.8,4159.7,1e-08]
[1760523088665,17.70866708,4159.8,4159.7,1e-08]
[1760523088869,5.48484129,4159.8,4159.7,1e-08]
[1760523089064,12.82361913,4159.8,4159.7,1e-08]
[1760523089268,15.25461913,4159.8,4159.7,1e-08]
[1760523089955,27.59797013,4159.8,4159.7,1e-08]
[1760523090178,29.76397013,4159.8,4159.7,1e-08]
[1760523090567,24.51481413,4159.8,4159.7,1e-08]
[1760523090762,22.70503413,4159.8,4159.7,1e-08]
[1760523090964,25.25784213,4159.8,4159.7,1e-08]
[1760523091288,25.25784213,4159.8,4159.7,0.22560001]
[1760523091289,0.21644957,4159.8,4159.7,0.22560001]
[1760523091488,2.431,4159.8,4159.7,3.58173785]
[1760523091786,0.001,4160.1,4160.0,2.40384615]
[1760523091963,2.432,4160.1,4159.8,0.4378]
[1760523092162,2.432,4160.1,4159.7,0.22560001]
[1760523092468,2.432,4160.1,4159.7,1e-08]
[1760523092670,9.10343672,4159.8,4159.7,1e-08]
[1760523092853,5.33224672,4159.8,4159.7,1e-08]
[1760523093381,2.40396172,4159.8,4159.7,1e-08]
[1760523093574,4.72566172,4159.8,4159.7,1e-08]
[1760523094184,2.40396172,4159.8,4159.7,1e-08]
[1760523094390,4.72566172,4159.8,4159.7,1e-08]
[1760523096267,5.49022061,4159.8,4159.7,1e-08]
[1760523096464,5.61058461,4159.8,4159.7,1e-08]
[1760523096668,9.38318561,4159.8,4159.7,1e-08]
[1760523096893,8.55913461,4159.8,4159.7,1e-08]
[1760523097597,0.76455889,4159.8,4159.7,1e-08]
[1760523097768,4.83496172,4159.8,4159.7,1e-08]
[1760523098273,2.40396172,4159.8,4159.7,1e-08]
[1760523098693,4.83496172,4159.8,4159.7,1e-08]
[1760523099596,0.001,4160.1,4159.7,1e-08]
[1760523099801,2.40479851,4160.1,4159.7,0.46810001]
[1760523100096,3.514,4160.0,4159.8,0.4356]
[1760523100269,7.00085211,4160.0,4159.8,0.4356]
[1760523100470,4.597,4160.0,4159.7,1e-08]
[1760523100671,3.514,4159.9,4159.7,1e-08]
[1760523101297,3.514,4159.9,4159.8,0.4356]
[1760523101902,2.40479982,4160.1,4159.8,0.4356]
[1760523102200,2.40479982,4160.1,4160.0,2.40384615]
[1760523102201,0.001,4160.1,4160.0,2.40384615]
[1760523102404,2.432,4160.1,4160.0,2.83944615]
[1760523103100,2.433,4160.1,4160.0,3.37578668]
[1760523103299,0.001,4160.1,4160.0,3.37578668]
[1760523103606,2.433,4160.1,4160.0,3.49578668]
[1760523105379,2.433,4160.1,4160.0,0.12]
[1760523105573,2.433,4160.1,4159.9,2.40386378]
[1760523105796,2.433,4160.1,4159.9,2.83946378]
[1760523105999,2.433,4160.1,4159.7,0.12000001]
[1760523106706,2.433,4160.1,4159.7,1e-08]
[1760523106707,0.12,4160.0,4159.7,1e-08]
[1760523106884,0.12,4160.0,4159.7,2.40398328]
[1760523107082,0.12,4160.0,4159.8,2.40395628]
[1760523107274,2.294,4159.9,4159.8,2.83955628]
[1760523107473,2.294,4159.9,4159.8,0.4356]
[1760523109380,2.294,4159.9,4159.7,1e-08]
[1760523109784,0.28593,4159.8,4159.7,1e-08]
[1760523110010,2.68989172,4159.8,4159.7,1e-08]
[1760523110178,4.85589172,4159.8,4159.7,1e-08]
[1760523110677,2.45193,4159.8,4159.7,1e-08]
[1760523113681,2.166,4159.8,4159.7,1e-08]
[1760523114199,3.515,4159.8,4159.7,1e-08]
[1760523114382,2.40392113,4159.9,4159.7,1e-08]
[1760523115011,2.40396172,4159.8,4159.7,1e-08]
[1760523115586,4.83596172,4159.8,4159.7,1e-08]
[1760523117815,0.001,4160.1,4159.7,1e-08]
[1760523118114,0.001,4160.1,4160.0,2.40384615]
[1760523118305,2.432,4160.1,4160.0,3.11635077]
[1760523118898,0.001,4160.1,4160.0,3.11635077]
[1760523119097,0.942,4160.1,4160.0,3.23635077]
[1760523119690,0.942,4160.1,4160.0,0.83250462]
[1760523120002,0.942,4160.1,4160.0,0.5492]
[1760523120201,2.025,4160.1,4160.0,0.12]
[1760523120401,1.084,4160.1,4160.0,0.12]
[1760523120611,3.517,4160.1,4160.0,2.95304615]
[1760523121619,1.084,4160.1,4160.0,2.95304615]
[1760523121823,3.517,4160.1,4160.0,2.52384615]
[1760523122523,3.517,4160.1,4159.7,1e-08]
[1760523122697,3.517,4160.1,4159.7,0.12000001]
[1760523123023,3.517,4160.1,4159.8,0.4292]
[1760523123329,2.433,4160.0,4159.9,0.4292]
[1760523123489,2.433,4160.0,4159.7,2.52400877]
[1760523123828,2.433,4160.0,4159.8,2.40396103]
[1760523124038,2.433,4160.0,4159.7,0.12000001]
[1760523124336,2.433,4160.0,4159.7,1e-08]
[1760523124503,0.5867,4159.9,4159.7,1e-08]
[1760523125124,0.1122,4159.9,4159.7,1e-08]
[1760523125739,0.5831,4159.9,4159.7,1e-08]
[1760523126541,2.99486172,4159.8,4159.7,1e-08]
[1760523126910,2.52396172,4159.8,4159.7,1e-08]
[1760523127621,2.99846172,4159.8,4159.7,1e-08]
[1760523128643,2.99486172,4159.8,4159.7,1e-08]
[1760523128836,14.90750872,4159.8,4159.7,1e-08]
[1760523129242,2.52396172,4159.8,4159.7,1e-08]
[1760523129424,4.95696172,4159.8,4159.7,1e-08]
[1760523130014,7.21556172,4159.8,4159.7,1e-08]
[1760523130220,9.38156172,4159.8,4159.7,1e-08]
[1760523130539,14.40832272,4159.8,4159.7,1e-08]
[1760523131520,18.84956172,4159.8,4159.7,1e-08]
[1760523131737,19.08392872,4159.8,4159.7,1e-08]
[1760523132317,16.64992872,4159.8,4159.7,1e-08]
[1760523132625,20.11736972,4159.8,4159.7,1e-08]
[1760523133513,21.69008672,4159.8,4159.7,1e-08]
[1760523134012,20.86965572,4159.8,4159.7,1e-08]
[1760523134444,25.36927772,4159.8,4159.7,1e-08]
[1760523134865,21.00566711,4159.5,4159.4,1e-08]
[1760523135023,22.92566711,4159.5,4159.4,1e-08]
[1760523135225,23.38096711,4159.5,4159.4,1e-08]
[1760523135424,30.81322011,4159.5,4159.4,1e-08]
[1760523135742,30.53005411,4159.5,4159.4,1e-08]
[1760523136650,22.74366911,4159.5,4159.4,1e-08]
[1760523136866,12.78857111,4159.5,4159.4,1e-08]
[1760523137431,7.21343511,4159.5,4159.4,1e-08]
[1760523137654,20.21382111,4159.5,4159.4,1e-08]
[1760523137951,20.21302111,4159.5,4159.4,1e-08]
[1760523138523,20.76060211,4159.5,4159.4,1e-08]
[1760523138828,20.06157411,4159.5,4159.4,1e-08]
[1760523139235,16.42020811,4159.5,4159.4,1e-08]
[1760523139636,19.34012838,4159.5,4159.4,1e-08]
[1760523140237,21.50612838,4159.5,4159.4,1e-08]
[1760523140536,25.37365538,4159.5,4159.4,1e-08]
[1760523140719,23.44965538,4159.5,4159.4,1e-08]
[1760523141220,7.59275011,4159.5,4159.4,1e-08]
[1760523141420,10.48205011,4159.5,4159.4,1e-08]
[1760523141622,17.24721111,4159.5,4159.4,1e-08]
[1760523141844,15.42017511,4159.5,4159.4,1e-08]
[1760523142524,7.21163511,4159.5,4159.4,1e-08]
[1760523142732,17.83478311,4159.5,4159.4,1e-08]
[1760523143624,22.00931811,4159.5,4159.4,1e-08]
[1760523143820,20.46638711,4159.5,4159.4,1e-08]